Workbook

Sheet Model
B1: x.1 Coeffcient | C1: x.2 Coefficient (must be >0) | G1: Unhide perceptual function: Ctrl u
A2: q.i | B2: 0.5 | C2: 0.5 | D2: q.i Stability (Max =1) | E2: =1-SQRT(_xlfn.VAR.S(P10:P107)/(_xlfn.VAR.S(K10:K107)+_xlfn.VAR.S(L10:L107))) -> 0.3209682524 | G2: Hide perceptual function: Ctrl h
A3: p | B3: -0.5 | C3: 0.9 | D3: p Stability (Max =1) | E3: =1-SQRT(_xlfn.VAR.S(O10:O107)/(_xlfn.VAR.S(K10:K107)+_xlfn.VAR.S(L10:L107))) -> 0.9546865677
A4: Control System Parameters
A5: r amp | B5: 0 | C5: r freq | D5: 0 | E5: slow | F5: 0.01
A6: dist (x.1) amp | B6: 10 | C6: dist freq (# of cycles) | D6: 3 | E6: gain | F6: 200
I7: sample | J7: r | K7: x.1 | L7: x.2 | M7: =CONCATENATE("p = ",TEXT(B3,"0.00")," * ",K7," + ",TEXT(C3,"0.00")," * x.2") -> p = -0.50 * x.1 + 0.90 * x.2 | N7: =CONCATENATE("q.i = ",TEXT(B2,"0.00")," * ",K7," + ",TEXT(C2,"0.00")," * x.2") -> q.i = 0.50 * x.1 + 0.50 * x.2 | O7: q.i | P7: p | R7: p | S7: q.i
I8: 1 | J8: =IF($D$5>0,$B$5*(SIN(2*3.14159*I8/(100/$D$5))+1.1),$B$5) -> 0 | K8: =$B$6*SIN(2*3.14159*I8/(100/$D$6)) -> 1.873811582 | L8: =0 -> 0 | M8: =$B$3*K8+$C$3*L8 -> -0.936905791 | N8: =$B$2*K8+$C$2*L8 -> 0.936905791 | O8: =$B$3*K8+$C$3*L8 -> -0.936905791 | P8: =$B$2*K8+$C$2*L8 -> 0.936905791 | R8: =ROUNDDOWN(O8,0) -> 0 | S8: =ROUNDDOWN(P8,0) -> 0
I9: 2 | J9: 0 | K9: 3.681242566 | L9: =L8+$F$5*($F$6*(J9-M8)-L8) -> 1.873811582 | M9: -0.1541908594 | N9: 2.777527074 | O9: -0.1541908594 | P9: 2.777527074 | R9: =ROUNDDOWN(O9-$B$5,0) -> 0 | S9: =ROUNDDOWN(P9,0) -> 2
I10: 3 | J10: 0 | K10: 5.358263917 | L10: 2.163455185 | M10: -0.7320222921 | N10: 3.760859551 | O10: -0.7320222921 | P10: 3.760859551 | R10: 0 | S10: 3
I11: 4 | J11: 0 | K11: 6.845466417 | L11: 3.605865217 | M11: -0.1774545129 | N11: 5.225665817 | O11: -0.1774545129 | P11: 5.225665817 | R11: 0 | S11: 5
I12: 5 | J12: 0 | K12: 8.090165265 | L12: 3.924715591 | M12: -0.5128386005 | N12: 6.007440428 | O12: -0.5128386005 | P12: 6.007440428 | R12: 0 | S12: 6
I13: 6 | J13: 0 | K13: 9.048266457 | L13: 4.911145636 | M13: -0.1041021563 | N13: 6.979706047 | O13: -0.1041021563 | P13: 6.979706047 | R13: 0 | S13: 6
I14: 7 | J14: 0 | K14: 9.68582884 | L14: 5.070238492 | M14: -0.2796997769 | N14: 7.378033666 | O14: -0.2796997769 | P14: 7.378033666 | R14: 0 | S14: 7
I15: 8 | J15: 0 | K15: 9.980266484 | L15: 5.578935661 | M15: 0.03090885266 | N15: 7.779601073 | O15: 0.03090885266 | P15: 7.779601073 | R15: 0 | S15: 7
I16: 9 | J16: 0 | K16: 9.921148809 | L16: 5.461328599 | M16: -0.04537866537 | N16: 7.691238704 | O16: -0.04537866537 | P16: 7.691238704 | R16: 0 | S16: 7
I17: 10 | J17: 0 | K17: 9.510570083 | L17: 5.497472644 | M17: 0.192440338 | N17: 7.504021363 | O17: 0.192440338 | P17: 7.504021363 | R17: 0 | S17: 7
I18: 11 | J18: 0 | K18: 8.763075238 | L18: 5.057617241 | M18: 0.1703178985 | N18: 6.91034624 | O18: 0.1703178985 | P18: 6.91034624 | R18: 0 | S18: 6
I19: 12 | J19: 0 | K19: 7.705144606 | L19: 4.666405272 | M19: 0.3471924418 | N19: 6.185774939 | O19: 0.3471924418 | P19: 6.185774939 | R19: 0 | S19: 6
I20: 13 | J20: 0 | K20: 6.374255846 | L20: 3.925356336 | M20: 0.3456927795 | N20: 5.149806091 | O20: 0.3456927795 | P20: 5.149806091 | R20: 0 | S20: 5
I21: 14 | J21: 0 | K21: 4.817556274 | L21: 3.194717214 | M21: 0.4664673552 | N21: 4.006136744 | O21: 0.4664673552 | P21: 4.006136744 | R21: 0 | S21: 4
I22: 15 | J22: 0 | K22: 3.090192657 | L22: 2.229835331 | M22: 0.4617554694 | N22: 2.660013994 | O22: 0.4617554694 | P22: 2.660013994 | R22: 0 | S22: 2
I23: 16 | J23: 0 | K23: 1.253357609 | L23: 1.284026039 | M23: 0.5289446305 | N23: 1.268691824 | O23: 0.5289446305 | P23: 1.268691824 | R23: 0 | S23: 1
I24: 17 | J24: 0 | K24: -0.6278781821 | L24: 0.2132965176 | M24: 0.5059059569 | N24: -0.2072908322 | O24: 0.5059059569 | P24: -0.2072908322 | R24: 0 | S24: 0
I25: 18 | J25: 0 | K25: -2.486871113 | L25: -0.8006483614 | M25: 0.5228520314 | N25: -1.643759737 | O25: 0.5228520314 | P25: -1.643759737 | R25: 0 | S25: -1
I26: 19 | J26: 0 | K26: -4.257765544 | L26: -1.838345941 | M26: 0.4743714254 | N26: -3.048055742 | O26: 0.4743714254 | P26: -3.048055742 | R26: 0 | S26: -3
I27: 20 | J27: 0 | K27: -5.877826761 | L27: -2.768705332 | M27: 0.4470785819 | N27: -4.323266047 | O27: 0.4470785819 | P27: -4.323266047 | R27: 0 | S27: -4
I28: 21 | J28: 0 | K28: -7.289663386 | L28: -3.635175442 | M28: 0.3731737949 | N28: -5.462419414 | O28: 0.3731737949 | P28: -5.462419414 | R28: 0 | S28: -5
I29: 22 | J29: 0 | K29: -8.443260486 | L29: -4.345171278 | M29: 0.3109760931 | N29: -6.394215882 | O29: 0.3109760931 | P29: -6.394215882 | R29: 0 | S29: -6
I30: 23 | J30: 0 | K30: -9.297751378 | L30: -4.923671751 | M30: 0.2175711129 | N30: -7.110711565 | O30: 0.2175711129 | P30: -7.110711565 | R30: 0 | S30: -7
I31: 24 | J31: 0 | K31: -9.822865347 | L31: -5.30957726 | M31: 0.1328131398 | N31: -7.566221303 | O31: 0.1328131398 | P31: -7.566221303 | R31: 0 | S31: -7
I32: 25 | J32: 0 | K32: -10 | L32: -5.522107767 | M32: 0.03010300993 | N32: -7.761053883 | O32: 0.03010300993 | P32: -7.761053883 | R32: 0 | S32: -7
I33: 26 | J33: 0 | K33: -9.822880264 | L33: -5.527092709 | M33: -0.06294330598 | N33: -7.674986486 | O33: -0.06294330598 | P33: -7.674986486 | R33: 0 | S33: -7
I34: 27 | J34: 0 | K34: -9.297780684 | L34: -5.34593517 | M34: -0.162451311 | N34: -7.321857927 | O34: -0.162451311 | P34: -7.321857927 | R34: 0 | S34: -7
I35: 28 | J35: 0 | K35: -8.443303142 | L35: -4.967573196 | M35: -0.2491643055 | N35: -6.705438169 | O35: -0.2491643055 | P35: -6.705438169 | R35: 0 | S35: -6
I36: 29 | J36: 0 | K36: -7.289717881 | L36: -4.419568853 | M36: -0.3327530273 | N36: -5.854643367 | O36: -0.3327530273 | P36: -5.854643367 | R36: 0 | S36: -5
I37: 30 | J37: 0 | K37: -5.877891165 | L37: -3.70986711 | M37: -0.3999348165 | N37: -4.793879138 | O37: -0.3999348165 | P37: -4.793879138 | R37: 0 | S37: -4
I38: 31 | J38: 0 | K38: -4.257837575 | L38: -2.872898806 | M38: -0.4566901379 | N38: -3.56536819 | O38: -0.4566901379 | P38: -3.56536819 | R38: 0 | S38: -3
I39: 32 | J39: 0 | K39: -2.48694822 | L39: -1.930789542 | M39: -0.4942364779 | N39: -2.208868881 | O39: -0.4942364779 | P39: -2.208868881 | R39: 0 | S39: -2
I40: 33 | J40: =IF($D$5>0,$B$5*(SIN(2*3.14159*I40/(100/$D$5))+1.1),$B$5) -> 0 | K40: =$B$6*SIN(2*3.14159*I40/(100/$D$6)) -> -0.6279576327 | L40: -0.9230086908 | M40: =$B$3*K40+$C$3*L40 -> -0.5167290054 | N40: =$B$2*K40+$C$2*L40 -> -0.7754831617 | O40: =$B$3*K40+$C$3*L40 -> -0.5167290054 | P40: =$B$2*K40+$C$2*L40 -> -0.7754831617 | R40: 0 | S40: 0
I41: 34 | J41: 0 | K41: 1.253278629 | L41: =L40+$F$5*($F$6*(J41-M40)-L40) -> 0.1196794069 | M41: -0.5189278484 | N41: 0.6864790181 | O41: -0.5189278484 | P41: 0.6864790181 | R41: =ROUNDDOWN(O41-$B$5,0) -> 0 | S41: =ROUNDDOWN(P41,0) -> 0
I42: 35 | J42: 0 | K42: 3.090116946 | L42: 1.15633831 | M42: -0.5043539941 | N42: 2.123227628 | O42: -0.5043539941 | P42: 2.123227628 | R42: 0 | S42: 2
I43: 36 | J43: 0 | K43: 4.817486513 | L43: 2.153482915 | M43: -0.4706086332 | N43: 3.485484714 | O43: -0.4706086332 | P43: 3.485484714 | R43: 0 | S43: 3
I44: 37 | J44: 0 | K44: 6.374194507 | L44: 3.073165352 | M44: -0.4212484364 | N44: 4.723679929 | O44: -0.4212484364 | P44: 4.723679929 | R44: 0 | S44: 4
I45: 38 | J45: 0 | K45: 7.705093862 | L45: 3.884930571 | M45: -0.3561094169 | N45: 5.795012217 | O45: -0.3561094169 | P45: 5.795012217 | R45: 0 | S45: 5
I46: 39 | J46: 0 | K46: 8.763036886 | L46: 4.558300099 | M46: -0.2790483536 | N46: 6.660668493 | O46: -0.2790483536 | P46: 6.660668493 | R46: 0 | S46: 6
I47: 40 | J47: 0 | K47: 9.510545483 | L47: 5.070813806 | M47: -0.1915403162 | N47: 7.290679644 | O47: -0.1915403162 | P47: 7.290679644 | R47: 0 | S47: 7
I48: 41 | J48: 0 | K48: 9.921138831 | L48: 5.4031863 | M48: -0.09770174568 | N48: 7.662162566 | O48: -0.09770174568 | P48: 7.662162566 | R48: 0 | S48: 7
I49: 42 | J49: 0 | K49: 9.980271483 | L49: 5.544557928 | M49: -3.360590863e-05 | N49: 7.762414706 | O49: -3.360590863e-05 | P49: 7.762414706 | R49: 0 | S49: 7
I50: 43 | J50: 0 | K50: 9.685848637 | L50: 5.489179561 | M50: 0.09733728631 | N50: 7.587514099 | O50: 0.09733728631 | P50: 7.587514099 | R50: 0 | S50: 7
I51: 44 | J51: 0 | K51: 9.048300352 | L51: 5.239613193 | M51: 0.1915016973 | N51: 7.143956772 | O51: 0.1915016973 | P51: 7.143956772 | R51: 0 | S51: 7
I52: 45 | J52: 0 | K52: 8.090212057 | L52: 4.804213666 | M52: 0.2786862713 | N52: 6.447212861 | O52: 0.2786862713 | P52: 6.447212861 | R52: 0 | S52: 6
I53: 46 | J53: 0 | K53: 6.845524448 | L53: 4.198798987 | M53: 0.3561568642 | N53: 5.522161717 | O53: 0.3561568642 | P53: 5.522161717 | R53: 0 | S53: 5
I54: 47 | J54: 0 | K54: 5.358331132 | L54: 3.444497269 | M54: 0.420881976 | N54: 4.4014142 | O54: 0.420881976 | P54: 4.4014142 | R54: 0 | S54: 4
I55: 48 | J55: 0 | K55: 3.681316583 | L55: 2.568288344 | M55: 0.470801218 | N55: 3.124802464 | O55: 0.470801218 | P55: 3.124802464 | R55: 0 | S55: 3
I56: 49 | J56: 0 | K56: 1.873889779 | L56: 1.601003025 | M56: 0.5039578325 | N56: 1.737446402 | O56: 0.5039578325 | P56: 1.737446402 | R56: 0 | S56: 1
I57: 50 | J57: 0 | K57: 7.960769381e-05 | L57: 0.5770773295 | M57: 0.5193297927 | N57: 0.2885784686 | O57: 0.5193297927 | P57: 0.2885784686 | R57: 0 | S57: 0
I58: 51 | J58: 0 | K58: -1.873733384 | L58: -0.4673530292 | M58: 0.5162489659 | N58: -1.170543207 | O58: 0.5162489659 | P58: -1.170543207 | R58: 0 | S58: -1
I59: 52 | J59: 0 | K59: -3.681168549 | L59: -1.495177431 | M59: 0.4949245868 | N59: -2.58817299 | O59: 0.4949245868 | P59: -2.58817299 | R59: 0 | S59: -2
I60: 53 | J60: 0 | K60: -5.358196702 | L60: -2.47007483 | M60: 0.456031004 | N60: -3.914135766 | O60: 0.456031004 | P60: -3.914135766 | R60: 0 | S60: -3
I61: 54 | J61: 0 | K61: -6.845408385 | L61: -3.357436089 | M61: 0.401011712 | N61: -5.101422237 | O61: 0.401011712 | P61: -5.101422237 | R61: 0 | S61: -5
I62: 55 | J62: 0 | K62: -8.090118472 | L62: -4.125885153 | M62: 0.3317625987 | N62: -6.108001812 | O62: 0.3317625987 | P62: -6.108001812 | R62: 0 | S62: -6
I63: 56 | J63: 0 | K63: -9.048232562 | L63: -4.748151498 | M63: 0.2507799322 | N63: -6.89819203 | O63: 0.2507799322 | P63: -6.89819203 | R63: 0 | S63: -6
I64: 57 | J64: 0 | K64: -9.685809042 | L64: -5.202229848 | M64: 0.1608976578 | N64: -7.444019445 | O64: 0.1608976578 | P64: -7.444019445 | R64: 0 | S64: -7
I65: 58 | J65: 0 | K65: -9.980261485 | L65: -5.472002865 | M65: 0.06532816436 | N65: -7.726132175 | O65: 0.06532816436 | P65: -7.726132175 | R65: 0 | S65: -7
I66: 59 | J66: 0 | K66: -9.921158786 | L66: -5.547939165 | M66: -0.03256585537 | N66: -7.734548976 | O66: -0.03256585537 | P66: -7.734548976 | R66: 0 | S66: -7
I67: 60 | J67: 0 | K67: -9.510594683 | L67: -5.427328063 | M67: -0.129297915 | N67: -7.468961373 | O67: -0.129297915 | P67: -7.468961373 | R67: 0 | S67: -7
I68: 61 | J68: 0 | K68: -8.763113589 | L68: -5.114458952 | M68: -0.2214562625 | N68: -6.93878627 | O68: -0.2214562625 | P68: -6.93878627 | R68: 0 | S68: -6
I69: 62 | J69: 0 | K69: -7.70519535 | L69: -4.620401837 | M69: -0.3057639789 | N69: -6.162798594 | O69: -0.3057639789 | P69: -6.162798594 | R69: 0 | S69: -6
I70: 63 | J70: 0 | K70: -6.374317184 | L70: -3.962669861 | M70: -0.3792442832 | N70: -5.168493523 | O70: -0.3792442832 | P70: -5.168493523 | R70: 0 | S70: -5
I71: 64 | J71: 0 | K71: -4.817626035 | L71: -3.164554596 | M71: -0.4392861194 | N71: -3.991090315 | O71: -0.4392861194 | P71: -3.991090315 | R71: 0 | S71: -3
I72: 65 | J72: =IF($D$5>0,$B$5*(SIN(2*3.14159*I72/(100/$D$5))+1.1),$B$5) -> 0 | K72: =$B$6*SIN(2*3.14159*I72/(100/$D$6)) -> -3.090268368 | L72: -2.254336812 | M72: =$B$3*K72+$C$3*L72 -> -0.4837689462 | N72: =$B$2*K72+$C$2*L72 -> -2.67230259 | O72: =$B$3*K72+$C$3*L72 -> -0.4837689462 | P72: =$B$2*K72+$C$2*L72 -> -2.67230259 | R72: 0 | S72: -2
I73: 66 | J73: 0 | K73: -1.253436589 | L73: =L72+$F$5*($F$6*(J73-M72)-L72) -> -1.264255551 | M73: -0.5111117014 | N73: -1.25884607 | O73: -0.5111117014 | P73: -1.25884607 | R73: =ROUNDDOWN(O73-$B$5,0) -> 0 | S73: =ROUNDDOWN(P73,0) -> -1
I74: 67 | J74: 0 | K74: 0.6277987314 | L74: -0.2293895927 | M74: -0.5203499992 | N74: 0.1992045693 | O74: -0.5203499992 | P74: 0.1992045693 | R74: 0 | S74: 0
I75: 68 | J75: 0 | K75: 2.486794006 | L75: 0.8136043016 | M75: -0.5111531318 | N75: 1.650199154 | O75: -0.5111531318 | P75: 1.650199154 | R75: 0 | S75: 1
I76: 69 | J76: 0 | K76: 4.257693512 | L76: 1.827774522 | M76: -0.4838496862 | N76: 3.042734017 | O76: -0.4838496862 | P76: 3.042734017 | R76: 0 | S76: 3
I77: 70 | J77: 0 | K77: 5.877762357 | L77: 2.777196149 | M77: -0.439404644 | N77: 4.327479253 | O77: -0.439404644 | P77: 4.327479253 | R77: 0 | S77: 4
I78: 71 | J78: 0 | K78: 7.289608891 | L78: 3.628233476 | M78: -0.3793943169 | N78: 5.458921183 | O78: -0.3793943169 | P78: 5.458921183 | R78: 0 | S78: 5
I79: 72 | J79: 0 | K79: 8.44321783 | L79: 4.350739775 | M79: -0.3059431175 | N79: 6.396978802 | O79: -0.3059431175 | P79: 6.396978802 | R79: 0 | S79: 6
I80: 73 | J80: 0 | K80: 9.297722072 | L80: 4.919118612 | M80: -0.2216542851 | N80: 7.108420342 | O80: -0.2216542851 | P80: 7.108420342 | R80: 0 | S80: 7
I81: 74 | J81: 0 | K81: 9.822850429 | L81: 5.313235996 | M81: -0.1295128181 | N81: 7.568043213 | O81: -0.1295128181 | P81: 7.568043213 | R81: 0 | S81: 7
I82: 75 | J82: 0 | K82: 9.999999999 | L82: 5.519129272 | M82: -0.03278365444 | N82: 7.759564636 | O82: -0.03278365444 | P82: 7.759564636 | R82: 0 | S82: 7
I83: 76 | J83: 0 | K83: 9.82289518 | L83: 5.529505289 | M83: 0.06510716954 | N83: 7.676200235 | O83: 0.06510716954 | P83: 7.676200235 | R83: 0 | S83: 7
I84: 77 | J84: 0 | K84: 9.297809989 | L84: 5.343995897 | M84: 0.1606913126 | N84: 7.320902943 | O84: 0.1606913126 | P84: 7.320902943 | R84: 0 | S84: 7
I85: 78 | J85: 0 | K85: 8.443345798 | L85: 4.969173312 | M85: 0.2505830824 | N85: 6.706259555 | O85: 0.2505830824 | P85: 6.706259555 | R85: 0 | S85: 6
I86: 79 | J86: 0 | K86: 7.289772376 | L86: 4.418315415 | M86: 0.331597685 | N86: 5.854043895 | O86: 0.331597685 | P86: 5.854043895 | R86: 0 | S86: 5
I87: 80 | J87: 0 | K87: 5.877955569 | L87: 3.71093689 | M87: 0.4008654169 | N87: 4.79444623 | O87: 0.4008654169 | P87: 4.79444623 | R87: 0 | S87: 4
I88: 81 | J88: 0 | K88: 4.257909606 | L88: 2.872096688 | M88: 0.455932216 | N88: 3.565003147 | O88: 0.455932216 | P88: 3.565003147 | R88: 0 | S88: 3
I89: 82 | J89: 0 | K89: 2.487025326 | L89: 1.931511289 | M89: 0.4948474968 | N89: 2.209268308 | O89: 0.4948474968 | P89: 2.209268308 | R89: 0 | S89: 2
I90: 83 | J90: 0 | K90: 0.6280370832 | L90: 0.9225011824 | M90: 0.5162325226 | N90: 0.7752691328 | O90: 0.5162325226 | P90: 0.7752691328 | R90: 0 | S90: 0
I91: 84 | J91: 0 | K91: -1.253199649 | L91: -0.1191888745 | M91: 0.5193298375 | N91: -0.6861942619 | O91: 0.5193298375 | P91: -0.6861942619 | R91: 0 | S91: 0
I92: 85 | J92: 0 | K92: -3.090041234 | L92: -1.156656661 | M92: 0.5040296223 | N92: -2.123348947 | O92: 0.5040296223 | P92: -2.123348947 | R92: 0 | S92: -2
I93: 86 | J93: 0 | K93: -4.817416752 | L93: -2.153149339 | M93: 0.4708739711 | N93: -3.485283045 | O93: 0.4708739711 | P93: -3.485283045 | R93: 0 | S93: -3
I94: 87 | J94: 0 | K94: -6.374133167 | L94: -3.073365788 | M94: 0.4210373748 | N94: -4.723749478 | O94: 0.4210373748 | P94: -4.723749478 | R94: 0 | S94: -4
I95: 88 | J95: 0 | K95: -7.705043118 | L95: -3.884706879 | M95: 0.3562853675 | N95: -5.794874999 | O95: 0.3562853675 | P95: -5.794874999 | R95: 0 | S95: -5
I96: 89 | J96: 0 | K96: -8.762998534 | L96: -4.558430546 | M96: 0.2789117762 | N96: -6.66071454 | O96: 0.2789117762 | P96: -6.66071454 | R96: 0 | S96: -6
I97: 90 | J97: 0 | K97: -9.510520882 | L97: -5.070669792 | M97: 0.1916576277 | N97: -7.290595337 | O97: 0.1916576277 | P97: -7.290595337 | R97: 0 | S97: -7
I98: 91 | J98: 0 | K98: -9.921128853 | L98: -5.40327835 | M98: 0.09761391162 | N98: -7.662203601 | O98: 0.09761391162 | P98: -7.662203601 | R98: 0 | S98: -7
I99: 92 | J99: 0 | K99: -9.980276481 | L99: -5.54447339 | M99: 0.0001121896433 | N99: -7.762374935 | O99: 0.0001121896433 | P99: -7.762374935 | R99: 0 | S99: -7
I100: 93 | J100: 0 | K100: -9.685868434 | L100: -5.489253035 | M100: -0.09739351463 | N100: -7.587560734 | O100: -0.09739351463 | P100: -7.587560734 | R100: 0 | S100: -7
I101: 94 | J101: 0 | K101: -9.048334247 | L101: -5.239573475 | M101: -0.1914490045 | N101: -7.143953861 | O101: -0.1914490045 | P101: -7.143953861 | R101: 0 | S101: -7
I102: 95 | J102: 0 | K102: -8.090258848 | L102: -4.804279732 | M102: -0.2787223345 | N102: -6.44726929 | O102: -0.2787223345 | P102: -6.44726929 | R102: 0 | S102: -6
I103: 96 | J103: 0 | K103: -6.845582479 | L103: -4.198792265 | M103: -0.3561217993 | N103: -5.522187372 | O103: -0.3561217993 | P103: -5.522187372 | R103: 0 | S103: -5
I104: 97 | J104: =IF($D$5>0,$B$5*(SIN(2*3.14159*I104/(100/$D$5))+1.1),$B$5) -> 0 | K104: -5.358398346 | L104: -3.444560744 | M104: =$B$3*K104+$C$3*L104 -> -0.4209054965 | N104: -4.401479545 | O104: -0.4209054965 | P104: -4.401479545 | R104: 0 | S104: -4
I105: 98 | J105: 0 | K105: -3.6813906 | L105: -2.568304144 | M105: -0.470778429 | N105: -3.124847372 | O105: -0.470778429 | P105: -3.124847372 | R105: 0 | S105: -3
I106: 99 | J106: 0 | K106: -1.873967977 | L106: -1.601064244 | M106: -0.5039738313 | N106: -1.737516111 | O106: -0.5039738313 | P106: -1.737516111 | R106: 0 | S106: -1
I107: 100 | J107: 0 | K107: -0.0001592153876 | L107: -0.5771059392 | M107: -0.5193157376 | N107: -0.2886325773 | O107: -0.5193157376 | P107: -0.2886325773 | R107: 0 | S107: 0
